Cogmind - Beta 13 @@@ ROGUE MODE // 2024.04.02 @ 12:32:46 Player: SYPIAC Result: Destroyed by S-10 Pest with Light Assault Rifle Performance ------------- Evolutions (0) 0 Regions Visited (2) 400 Robots Destroyed (28) 140 Value Destroyed (715) 715 Prototype IDs (0) 0 Alien Tech Used (0) 0 Bonus (0) 0 TOTAL SCORE: 1255 Bonus ------- None Cogmind --------- Core Integrity 0/250 Matter 300/300 Energy 140/140 System Corruption 2% Temperature Cool (0) Movement Treading (240) Ox1 Location -10/Mines Parts ------- > --- POWER (1) -------- Light Deuterium Engine > --- PROPULSION (2) --- Light Treads Wheel > --- UTILITY (2) ------ Large Storage Unit Improved Light Armor Plating > --- WEAPON (2) ------- Mini Grenade Launcher > --- INVENTORY (15) --- Ion Engine Light Ion Engine Light Ion Engine Compact Wheel Combat Airjet Combat Airjet Huge Storage Unit Sensor Array Peak State ------------ > --- POWER ------------ Light Deuterium Engine > --- PROPULSION ------- Wheel Compact Wheel > --- UTILITY ---------- Large Storage Unit Improved Light Armor Plating > --- WEAPON ----------- Mini Grenade Launcher > --- INVENTORY -------- Ion Engine Light Ion Engine Light Ion Engine Light Treads Combat Airjet Huge Storage Unit Sensor Array [Rating: 12] Favorites ----------- Power Ion Engine Engine Ion Engine Propulsion Compact Wheel Treads Light Treads Wheel Compact Wheel Utility Large Storage Unit Device Sensor Array Storage Large Storage Unit Protection Hardened Light Armor Plating Weapon Light Cannon Energy Gun EM Pulse Gun Ballistic Gun Assault Rifle Ballistic Cannon Light Cannon Launcher Mini Grenade Launcher Special Weapon Welding Torch Build | -11 -10 -10 ------- Run | Yrd Mat Min Slots Evolved . | . . . Power . | . . . Propulsion . | . . . Utility . | . . . Weapon . | . . . Parts Attached 38 | 7 18 13 Power 5 | 1 3 1 Engine 5 | 1 3 1 Core . | . . . Reactor . | . . . Propulsion 11 | 2 2 7 Treads 4 | . . 4 Leg . | . . . Wheel 7 | 2 2 3 Hover . | . . . Flight . | . . . Utility 10 | 1 5 4 Device 1 | . 1 . Storage 7 | 1 3 3 Processor . | . . . Hackware . | . . . Protection 2 | . 1 1 Artifact . | . . . Weapon 12 | 3 8 1 Energy Gun 4 | 1 3 . Energy Cannon . | . . . Ballistic Gun 4 | 2 2 . Ballistic Cannon 2 | . 2 . Launcher 1 | . . 1 Special Weapon 1 | . 1 . Impact Weapon . | . . . Slashing Weapon . | . . . Piercing Weapon . | . . . Special Melee Weapon . | . . . Unidentified Prototypes . | . . . Parts Lost 4 | . 2 2 Power . | . . . Propulsion 2 | . 1 1 Utility . | . . . Weapon 2 | . 1 1 Highest Loss Streak 1 | . 1 1 To Critical Strikes 1 | . . 1 Average Slot Usage (%) 93 | . 97 85 Engine 14 | . 14 14 Treads 2 | . . 10 Wheel 24 | . 27 17 Device 6 | . 9 . Storage 14 | . 14 14 Protection 5 | . 2 14 Energy Gun 4 | . 5 1 Ballistic Gun 8 | . 11 . Ballistic Cannon 9 | . 10 7 Launcher 1 | . . 5 Naked Turns . | . . . Heaviest Build 95 | 12 95 95 Greatest Support 40 | 32 32 40 Greatest Overweight (x) 5 | . 2 5 Average Overweight (x) . | . . 1 Largest Inventory Capacity 25 | 8 25 25 Average Capacity 13 | 7 12 17 Most Carried 8 | 4 7 8 Average Carried 5 | 1 4 6 Final Capacity 25 | 8 25 15 Final Carried 8 | 4 7 8 Class Distribution -------------------- 86% | Mutant 13% | Scavenger-Mutant Dominant Class ---------------- Mutant | -10/Materials Mutant | -10/Mines Resources | -11 -10 -10 ----------- Run | Yrd Mat Min Matter Collected 995 | 219 498 278 Remotely . | . . . Salvage Created 940 | . 881 59 Parts 48 | . 47 1 Haulers Intercepted 1 | . 1 . Recyclers Shooed . | . . . Parts Field Recycled . | . . . Retrieved Matter . | . . . Parts Self-Destructed . | . . . Prevented . | . . . Kills | -11 -10 -10 ------- Run | Yrd Mat Min Combat Hostiles Destroyed 20 | . 17 3 Guns 11 | . 11 . Cannons 7 | . 4 3 AOE 2 | . 2 . Classes Destroyed 9 | . 8 1 Worker 1 | . 1 . Hauler 1 | . 1 . Recycler 3 | . 3 . Mechanic 1 | . 1 . Operator 2 | . 2 . Watcher 1 | . 1 . Swarmer 3 | . 3 . Grunt 16 | . 14 2 Assembled 1 | . . 1 Best Kill Streak 6 | . 6 2 Combat Bots Only 5 | . 5 2 Max Kills in Single Turn 2 | . 2 1 Gunslinging . | . . . Exploded 2 | . 2 . Melee . | . . . Uniques/NPCs Destroyed . | . . . Combat | -11 -10 -10 -------- Run | Yrd Mat Min Hostile Shots Fired 126 | . 67 59 Missed 30 | . 14 16 Damage Taken 1213 | . 659 554 Core 253 | . 154 99 Absorbed by Shields . | . . . Core Remaining (%) 100 | 100 . . Volleys Fired 83 | . 69 14 Largest 2 | . 2 2 Hottest 75 | . 75 75 Shots Fired 157 | . 134 23 Gun 84 | . 75 9 Cannon 70 | . 56 14 Launcher . | . . . Special 3 | . 3 . Kinetic 126 | . 112 14 Thermal 3 | . 3 . Explosive . | . . . Electromagnetic 28 | . 19 9 Robot Hit Streak 15 | . 15 3 Robot Miss Streak 4 | . 4 4 Penetration Max . | . . . Secondary Targets . | . . . Shots Hit Robots 98 | . 85 13 Core Hits 40 | . 35 5 Critical Kills . | . . . Critical Parts Destroyed . | . . . Critical Strikes 3 | . 3 . Blast 3 | . 3 . Melee Attacks . | . . . Impact . | . . . Slashing . | . . . Piercing . | . . . Sneak Attacks . | . . . Combat Hostiles . | . . . Follow-up Attacks . | . . . Damage Inflicted 1661 | . 1427 234 Guns 754 | . 726 28 Cannons 787 | . 590 197 Explosions 102 | . 102 . Melee . | . . . Ramming 18 | . 9 9 Kinetic 1280 | . 1083 197 Thermal 102 | . 102 . Explosive . | . . . Electromagnetic 261 | . 233 28 Impact . | . . . Slashing . | . . . Piercing . | . . . Highest Corruption 2 | . 2 2 Average Corruption 2 | . 2 2 Corruption Purged . | . . . Corruption Blocked . | . . . Effects 6 | . . 6 Message Errors 1 | . . 1 Matter Fused 2 | . . 2 Energy Discharges 1 | . . 1 Parts Rejected 1 | . . 1 Alerts 1 | . . 1 Overload Shots . | . . . Overflow Damage 22 | . 22 . Projectiles 4 | . 4 . Explosions 18 | . 18 . Melee . | . . . Knockbacks 11 | . 8 3 Impact . | . . . Kinetic 10 | . 7 3 Secondary 1 | . 1 . Self-Inflicted Damage 75 | . 73 2 Shots 2 | . 2 . Rammed 11 | . 1 10 Targets Rammed 11 | . 1 10 Kicked . | . . . Crushed . | . . . Highest Temperature 333 | . 190 333 Average Temperature 77 | . 41 160 Received Heat Transfer 441 | . 300 141 Siege Activations . | . . . Robots Corrupted . | . . . Combat Hostiles . | . . . Parts Fried . | . . . Impact Corruptions . | . . . Robots Melted . | . . . Combat Hostiles . | . . . Parts Melted . | . . . Heat Transferred 150 | . 150 . Parts Sabotaged . | . . . Parts Stolen . | . . . Parts Stripped . | . . . Power Chain Reactions 2 | . 2 . Alert | -11 -10 -10 ------- Run | Yrd Mat Min Peak Influence 280 | . 280 98 Initial 43 | . . 43 Average 95 | . 105 85 Maximum Alert Level 1 | . 1 . Low Security (%) 96 | 100 94 100 Level 1 3 | . 5 . Level 2 . | . . . Level 3 . | . . . Level 4 . | . . . Level 5 . | . . . High Security . | . . . Max Security . | . . . Squads Dispatched 5 | . 5 . Investigation 2 | . 2 . Extermination . | . . . Reinforcement 3 | . 3 . Assault . | . . . Garrison . | . . . Intercept . | . . . Searches Triggered . | . . . Construction Impeded . | . . . Haulers Reinforced . | . . . Active Scanning Responses . | . . . Cargo Convoy Interrupts . | . . . Stealth | -11 -10 -10 --------- Run | Yrd Mat Min Distress Signals 1 | . 1 . Communications Jammed . | . . . Distress Signals . | . . . Times Spotted 49 | . 28 21 Peak Tracking Total 19 | . 5 19 Tactical Retreats . | . . . Traps | -11 -10 -10 ------- Run | Yrd Mat Min Traps Triggered 2 | . 2 . Indirectly . | . . . Trap Hack Attempts . | . . . Triggered . | . . . Disarmed . | . . . Reprogrammed . | . . . Reused . | . . . Traps Extracted . | . . . Installed . | . . . Triggered . | . . . Machines | -11 -10 -10 ---------- Run | Yrd Mat Min Machines Disabled 2 | . 1 1 Max in Single Turn 1 | . 1 1 Machines Repaired . | . . . Machines Dismantled . | . . . Machines Sabotaged . | . . . Overloaded Fab Kills . | . . . Hacking | -11 -10 -10 --------- Run | Yrd Mat Min Machines Accessed 5 | . 3 2 Terminals 4 | . 2 2 Fabricators . | . . . Repair Stations . | . . . Recycling Units 1 | . 1 . Scanalyzers . | . . . Garrison Access . | . . . Total Hacks 13 | . 9 4 Successful 7 | . 6 1 Failed 6 | . 3 3 Catastrophic . | . . . Database Lockouts . | . . . Manual 11 | . 8 3 Terminals 10 | . 6 4 Fabricators . | . . . Repair Stations . | . . . Recycling Units 3 | . 3 . Scanalyzers . | . . . Garrison Access . | . . . Terminal Hacks 3 | . 2 1 Terminal Index 2 | . 1 1 Unreport Threat 1 | . 1 . Fabricator Hacks . | . . . Repair Station Hacks . | . . . Recycling Unit Hacks 1 | . 1 . Report Inventory 1 | . 1 . Scanalyzer . | . . . Garrison Access Hacks . | . . . Unauthorized Hacks 3 | . 3 . Terminals 2 | . 2 . Botnet 2 | . 2 . Fabricators . | . . . Repair Stations . | . . . Recycling Units 1 | . 1 . Monitor 1 | . 1 . Scanalyzers . | . . . Garrison Access . | . . . Data Cores Recovered . | . . . Used . | . . . Hacking Detections 4 | . 2 2 Full Trace Events 1 | . 1 . Feedback Events . | . . . Feedback Blocked . | . . . Robot Schematics Acquired . | . . . Robots Built . | . . . Authchips . | . . . Time . | . . . Total Robot Build Rating . | . . . Part Schematics Acquired . | . . . Parts Built . | . . . Authchips . | . . . Time . | . . . Total Part Build Rating . | . . . Parts Repaired . | . . . Time . | . . . Parts Recycled . | . . . Recycled Matter . | . . . Retrieved Matter . | . . . Retrieved Components . | . . . Parts Scanalyzed . | . . . Part Schematics Acquired . | . . . Parts Damaged . | . . . Bothacking | -11 -10 -10 ------------ Run | Yrd Mat Min Used RIF Installer . | . . . Robots Hacked . | . . . Non-combat . | . . . Combat . | . . . Robot Hacks Applied . | . . . Relay Couplers Released . | . . . Fabnet Peak Effective % . | . . . Robots Rewired . | . . . Allies Hacked . | . . . Hacks Repelled . | . . . Allies | -11 -10 -10 -------- Run | Yrd Mat Min Total Allies . | . . . Largest Group . | . . . Highest-Rated Group . | . . . Highest-Rated Ally . | . . . Total Orders . | . . . Ally Attacks . | . . . Total Damage . | . . . Kills . | . . . Allies Corrupted . | . . . Allies Melted . | . . . Intel | -11 -10 -10 ------- Run | Yrd Mat Min Robot Analysis Total . | . . . Derelict Logs Recovered 1 | . . 1 Drone Launches . | . . . Drone Recoveries . | . . . Exploration | -11 -10 -10 ------------- Run | Yrd Mat Min Turns Passed 1390 | 61 939 390 Spaces Moved 857 | 49 567 241 Core 3 | 3 . . Treads 32 | . . 32 Legs . | . . . Wheels 822 | 46 567 209 Hover . | . . . Flight . | . . . Fastest Speed 50 | 50 100 105 Average Speed 108 | 96 103 122 Slowest Speed 320 | 100 130 320 Overloaded Moves . | . . . Propulsion Burnouts . | . . . Robots Hopped . | . . . Cave-ins Triggered . | . . . Exploration Rate (%) 44 | 4 80 50 Regions Visited 2 Branch Regions 1 Pre-discovered Areas . | . . . Known Exits Taken . | . . . Unknown Exits Taken 2 | 1 1 . Scrap Searched . | . . . Spaces Dug . | . . . Terrain Destroyed 10 | . 10 . Melee . | . . . Projectile . | . . . AOE 10 | . 10 . Terrain Rammed . | . . . Walls Destroyed . | . . . Machines Disabled . | . . . Actions | -11 -10 -10 --------- Run | Yrd Mat Min Total 1138 | 59 784 295 Wait 123 | . 112 11 Move 855 | 48 566 241 Hop . | . . . Pick Up 15 | 4 8 3 Fast Attach 11 | 6 3 2 Attach 4 | . 3 1 Detach . | . . . Swap 23 | 1 12 10 Drop 13 | . 10 3 Fire 83 | . 69 14 Melee . | . . . Ram 2 | . 1 1 Kick . | . . . Crush 9 | . . 9 Escape Stasis . | . . . Rewire . | . . . Trap . | . . . Miscellaneous . | . . . Route ------- -11/Scrapyard -10/Materials (discovered 3 exits: [*Mat x2] / *Min) -10/Mines (discovered 2 exits: [*Mat] / [*Exi]) History --------- Turn | Location | Event 9 | -11/Scrapyard | Discovered new exit (range 14) 62 | -11/Scrapyard | Entered Materials 258 | -10/Materials | Discovered new exit (range 12) 310 | -10/Materials | Build established: Mutant 669 | -10/Materials | Discovered new exit (range 9) 752 | -10/Materials | Core integrity fell below 50% 831 | -10/Materials | Discovered new exit (range 13) 1001 | -10/Materials | Entered Mines 1003 | -10/Mines | Met a Derelict bent on vengeance 1055 | -10/Mines | Core integrity fell below 20% 1110 | -10/Mines | Assembled infested the area 1184 | -10/Mines | Met 8R-AWN 1293 | -10/Mines | Discovered new exit (range 5) 1326 | -10/Mines | Discovered new exit (range 6) 1350 | -10/Mines | Learned Materials terminal intel 1391 | -10/Mines | Destroyed by S-10 Pest with Light Assault Rifle Last Messages --------------- 01233_ Dropped Hrd. Light Armor Plating. 01233_ Acquired Imp. Light Armor Plating. 01235_ K-01 Serf collects debris. 01237_ Dropped Ion Engine. 01239_ K-01 Serf collects debris. 01240_ Acquired Mni. Grenade Launcher. 01241_ Acquired 30 matter. 01242_ K-01 Serf collects debris. 01243_ Acquired Cmb. Airjet. 01246_ K-01 Serf collects debris. 01262_ U-05 Engineer lays Concrete. 01276_ U-05 Engineer builds a Wall. 01281_ System corrupted: Matter fused (-6). 01293_ EXIT=FOUND 01350_ Acquired derelict log, extracted data. Data stored: Materials terminal intel. 01352_ System corrupted: Matter fused (-9). 01364_ Slammed into S-10 Pest. 01380_ S-10 Pest destroyed. 01382_ Slammed into S-10 Pest. Map ----- +----------------------------------------------------+ | [# "" """ #????# #???????#####??#???????????? | | # "" """ #????+ #??????## ## ### ###?????? | | # """ """ #??? + ##????## ??????? | | # #??? # ######%!% #?????????????? | | # """ "" #??/## %%%%% %% ##?????????????? | | # """ """ ####### %%%%%% * ##??????????????? | | # " * % % #### ! ##???????????????? | | ## = #?## ###????????????????? | | ?# #########= ### ##??????????????????? | | ?###########?###?# # != #???????????????????? | | ????????????????###|*=## #???????????????????? | | ?????????????#### !% %## ##???????????????????? | | ???????#####?# ! ## ####????????????????????? | | ??????## ### ### #???????????????????????? | | ????### ## #?# #???????????????????????? | | ???## # #### #???????????????????????? | | #### #???????????? #?????????? | | #####??????????? #?????????? | | ###?????????????? ??????????? | | ##### ##??????????????? ????????????? | | ????### ##??????####????? ?????????????? | | ??????## #??????## ##??? #??????????????? | | ???????# ##?????## ### #??????????????? | | ???????# ###?????## #??????????????? | | ???????# ##???????# %%%s ##?????????????? | | ???????# ##????????# @ #?????????????? | | ???????# ##?????????## s %# #?????????????? | | ???????# ##???????????### ## #?????????????? | | ???????# #??????????????# #?## #????????????? | | ???????# #??????????????# #???? #????????????? | | ???????# #???############ #????? #????????????? | | ???????# #???# #??????##????????????? | | ???????# #???# #### ##### ##???????????????????? | | ???????# #???# #??# ????# #???????????????????? | | ???????# #???# #??# #???## ##### #???????? | | ???????# #???# #??# #????# #????????? | | ######## #???# #??# #???## ###### #????????? | | # #???# #??# #???# ##?????????????????? | | # ###### #???# #??# #???# #?????????????????? | | #????# #???# #??# #???# #?????????????????? | | ##????# ##### #### #???# ##?????????????????? | | ##?????# #??## #??????????????????? | | ???????###### #### #?## #??????????????????? | | ????????????# #??# ### ##?????????????????? | | ???????????# #?# < #?????????????????? | | ??????????# ####### #????????????????? | | ?????????# """ ????## #????????????????? | | ?????????# """ ????## ##????????????????? | | ?????????# """ #????## ##?????????????????? | | ?????????## ##?????####??????????????????? | +----------------------------------------------------+ Best States ------------- Heat Dissipation 25 Energy Generation 14 Energy Capacity 250 Matter Stores 300 Matter Capacity 300 Sight Range 16 Robot Scan Range 14 Terrain Scan Density 10 Armor Coverage 150 Evasion (%) 40 Recoil Reduction 2 Item Schematics ----------------- None Robot Schematics ------------------ None Fabricated ------------ Nothing Alien Tech Used ----------------- None Achievements -------------- root@ Challenges ------------ None Game ------ Seed TransmissionStorageAirjet Manual? 0 Play Time 00:24:57 Cumulative 18.1 hours Start 2024.04.02 @ 11:24:53 End 2024.04.02 @ 12:32:46 Sessions 2 Manual Loads 0 Difficulty Rogue Special Mode None Game No. 7 Rogue 7 Adventurer 0 Explorer 0 Win Type - Total 0 Types 0/0/0/0/0/0/0/0/0 Lore% 20 Gallery% 24 Achievement% 27 Wizard Run 0 Options --------- Layout 1 ASCII 0 Keyboard 0 Movement Mouse Keybinds 0 Fullscreen 2 Font 24/Terminus Map View 50x35 Zoom Use 0% Tactical HUD 1 Map Filters NONE Filters NONE Steam 1 RUN: 3980e35c-43ca-4336-b99f-f91343e7e04c